[Event "Early-Titled-Tuesday-Blitz-May-14-2024"]
[Site "Chess.com"]
[Date "2024.05.14"]
[Round "5"]
[White "EvgenyBurmakin"]
[Black "LeoLV10"]
[Result "0-1"]
[WhiteElo "2331"]
[BlackElo "2518"]
[TimeControl "180+1"]
[EndTime "8:58:00 PDT"]
[Termination "LeoLV10 won by resignation"]

1. e4 {[%clk 0:03:00.9]} 1... c6 {[%clk 0:03:00.9]} 2. Nc3 {[%clk 0:03:00.5]}
2... d5 {[%clk 0:03:01.8]} 3. Nf3 {[%clk 0:03:00.9]} 3... Bg4 {[%clk 0:02:59.8]}
4. d4 {[%clk 0:03:00.7]} 4... e6 {[%clk 0:02:58.1]} 5. Bd3 {[%clk 0:02:59.3]}
5... Nf6 {[%clk 0:02:51.1]} 6. h3 {[%clk 0:02:58.9]} 6... Bxf3 {[%clk
0:02:50.5]} 7. Qxf3 {[%clk 0:02:58.1]} 7... dxe4 {[%clk 0:02:48.6]} 8. Nxe4
{[%clk 0:02:57.7]} 8... Be7 {[%clk 0:02:44.8]} 9. c3 {[%clk 0:02:55.5]} 9...
Nbd7 {[%clk 0:02:43.6]} 10. Bf4 {[%clk 0:02:49.5]} 10... Nxe4 {[%clk 0:02:40.1]}
11. Bxe4 {[%clk 0:02:48.1]} 11... O-O {[%clk 0:02:35.3]} 12. O-O {[%clk
0:02:47.5]} 12... Nf6 {[%clk 0:02:35.2]} 13. Bc2 {[%clk 0:02:46.9]} 13... Rc8
{[%clk 0:02:33.1]} 14. Rad1 {[%clk 0:02:41.2]} 14... Nd5 {[%clk 0:02:23.9]} 15.
Bg3 {[%clk 0:02:31.1]} 15... Bf6 {[%clk 0:02:21]} 16. a3 {[%clk 0:02:23.9]}
16... b5 {[%clk 0:02:19.1]} 17. Rfe1 {[%clk 0:02:18.6]} 17... g6 {[%clk
0:02:19.1]} 18. Be5 {[%clk 0:02:10]} 18... Bg7 {[%clk 0:02:15.3]} 19. Bxg7
{[%clk 0:02:08.5]} 19... Kxg7 {[%clk 0:02:16.2]} 20. g3 {[%clk 0:02:06.7]} 20...
Qf6 {[%clk 0:02:15.9]} 21. Kg2 {[%clk 0:02:03.7]} 21... c5 {[%clk 0:02:14.1]}
22. dxc5 {[%clk 0:01:53.7]} 22... Rxc5 {[%clk 0:02:14.9]} 23. Bb3 {[%clk
0:01:49.1]} 23... Nb6 {[%clk 0:02:12.6]} 24. Qxf6+ {[%clk 0:01:33.5]} 24... Kxf6
{[%clk 0:02:12.3]} 25. Rd6 {[%clk 0:01:25.9]} 25... Ke7 {[%clk 0:02:11.6]} 26.
Red1 {[%clk 0:01:24.1]} 26... Rc7 {[%clk 0:02:09.9]} 27. R6d4 {[%clk 0:01:08.3]}
27... Nd7 {[%clk 0:02:00.7]} 28. Rb4 {[%clk 0:00:58.4]} 28... Rb8 {[%clk
0:01:47.1]} 29. a4 {[%clk 0:00:46.9]} 29... a6 {[%clk 0:01:23.9]} 30. axb5
{[%clk 0:00:43.8]} 30... axb5 {[%clk 0:01:24.8]} 31. Ra1 {[%clk 0:00:40.6]}
31... Rcb7 {[%clk 0:01:22.2]} 32. Ra5 {[%clk 0:00:34.1]} 32... Ne5 {[%clk
0:01:22.6]} 33. Re4 {[%clk 0:00:26.3]} 33... Nd3 {[%clk 0:01:16.9]} 34. Ra2
{[%clk 0:00:15.4]} 34... Nc5 {[%clk 0:01:16.4]} 35. Rb4 {[%clk 0:00:14.2]} 35...
Rd8 {[%clk 0:01:06.9]} 36. Bc2 {[%clk 0:00:09.9]} 36... Rd2 {[%clk 0:01:05.1]}
37. Bb1 {[%clk 0:00:09.3]} 37... h5 {[%clk 0:00:55.6]} 38. Ra5 {[%clk
0:00:08.9]} 38... Rd1 {[%clk 0:00:49]} 39. Ba2 {[%clk 0:00:08.7]} 39... Rd2
{[%clk 0:00:47.6]} 40. Raxb5 {[%clk 0:00:08.6]} 40... Rxb5 {[%clk 0:00:46.7]}
41. Rxb5 {[%clk 0:00:09.5]} 41... Nd3 {[%clk 0:00:46.5]} 42. Bc4 {[%clk
0:00:08.6]} 42... Nxb2 {[%clk 0:00:43.3]} 43. Rb7+ {[%clk 0:00:08.9]} 43... Kf6
{[%clk 0:00:42.9]} 44. Bf1 {[%clk 0:00:08]} 44... Nd1 {[%clk 0:00:41.2]} 45. Kf3
{[%clk 0:00:06]} 45... Rxf2+ {[%clk 0:00:40]} 46. Ke4 {[%clk 0:00:06.6]} 46...
Nxc3+ {[%clk 0:00:38.2]} 47. Kd3 {[%clk 0:00:05.4]} 47... Rxf1 {[%clk
0:00:39.1]} 48. Kxc3 {[%clk 0:00:05.9]} 48... Rf3+ {[%clk 0:00:39.8]} 49. Kd4
{[%clk 0:00:06.5]} 49... Rxg3 {[%clk 0:00:40.7]} 50. Rb5 {[%clk 0:00:05.5]}
50... Rxh3 {[%clk 0:00:40.7]} 51. Ke4 {[%clk 0:00:06.4]} 51... Rg3 {[%clk
0:00:39]} 52. Kf4 {[%clk 0:00:06.4]} 52... h4 {[%clk 0:00:39.9]} 53. Rb7 {[%clk
0:00:05.8]} 53... g5+ {[%clk 0:00:40.5]} 54. Ke4 {[%clk 0:00:06]} 54... h3
{[%clk 0:00:40.8]} 55. Rb2 {[%clk 0:00:04.7]} 55... Rg2 {[%clk 0:00:40.3]} 56.
Rb1 {[%clk 0:00:05]} 56... h2 {[%clk 0:00:40.5]} 0-1

[Event "Early-Titled-Tuesday-Blitz-May-14-2024"]
[Site "Chess.com"]
[Date "2024.05.14"]
[Round "5"]
[White "santosalberto1987"]
[Black "Suleyman_Chess06"]
[Result "1-0"]
[WhiteElo "2601"]
[BlackElo "2781"]
[TimeControl "180+1"]
[EndTime "8:58:02 PDT"]
[Termination "santosalberto1987 won by resignation"]

1. e4 {[%clk 0:03:00.9]} 1... e6 {[%clk 0:02:56.9]} 2. d4 {[%clk 0:03:00]} 2...
d5 {[%clk 0:02:56.4]} 3. Nc3 {[%clk 0:02:57.7]} 3... Nf6 {[%clk 0:02:53.4]} 4.
e5 {[%clk 0:02:57.5]} 4... Nfd7 {[%clk 0:02:53.3]} 5. Nce2 {[%clk 0:02:58]} 5...
c5 {[%clk 0:02:51.4]} 6. c3 {[%clk 0:02:58.1]} 6... Nc6 {[%clk 0:02:51.7]} 7.
Nf3 {[%clk 0:02:58.4]} 7... f6 {[%clk 0:02:49.3]} 8. exf6 {[%clk 0:02:55.9]}
8... Nxf6 {[%clk 0:02:50.2]} 9. g3 {[%clk 0:02:53.6]} 9... Bd6 {[%clk
0:02:46.5]} 10. Bg2 {[%clk 0:02:52.1]} 10... O-O {[%clk 0:02:39.8]} 11. O-O
{[%clk 0:02:51.4]} 11... b6 {[%clk 0:02:37.9]} 12. Bf4 {[%clk 0:02:48.5]} 12...
Ba6 {[%clk 0:02:34.4]} 13. Bxd6 {[%clk 0:02:47]} 13... Qxd6 {[%clk 0:02:33.3]}
14. Re1 {[%clk 0:02:46.2]} 14... Ne4 {[%clk 0:02:33.3]} 15. Nf4 {[%clk
0:02:19.5]} 15... Rxf4 {[%clk 0:02:29.1]} 16. gxf4 {[%clk 0:02:20.4]} 16... Qxf4
{[%clk 0:02:29.6]} 17. dxc5 {[%clk 0:02:07.8]} 17... bxc5 {[%clk 0:02:25.9]} 18.
Qa4 {[%clk 0:02:06.6]} 18... Bb7 {[%clk 0:02:08.8]} 19. c4 {[%clk 0:01:51.1]}
19... Nd4 {[%clk 0:02:00.7]} 20. Nxd4 {[%clk 0:01:21.7]} 20... Qxf2+ {[%clk
0:01:58.6]} 21. Kh1 {[%clk 0:01:22.1]} 21... Qxd4 {[%clk 0:01:59.5]} 22. Bxe4
{[%clk 0:00:50.5]} 22... dxe4 {[%clk 0:01:49.8]} 23. Qb3 {[%clk 0:00:48.8]}
23... Bc6 {[%clk 0:01:35.8]} 24. Qe3 {[%clk 0:00:44.4]} 24... Rd8 {[%clk
0:01:34.7]} 25. Rad1 {[%clk 0:00:35.4]} 25... Qxd1 {[%clk 0:01:31.7]} 26. Rxd1
{[%clk 0:00:36.3]} 26... Rxd1+ {[%clk 0:01:32]} 27. Kg2 {[%clk 0:00:36.9]} 27...
h6 {[%clk 0:01:22.4]} 28. Qxc5 {[%clk 0:00:31.8]} 28... Bd7 {[%clk 0:00:38.6]}
29. Qe5 {[%clk 0:00:24.1]} 29... Rd2+ {[%clk 0:00:32.9]} 30. Kg3 {[%clk
0:00:23.7]} 30... g5 {[%clk 0:00:20.3]} 31. Qxe4 {[%clk 0:00:21.4]} 31... Kg7
{[%clk 0:00:18.4]} 32. c5 {[%clk 0:00:19.4]} 32... Bb5 {[%clk 0:00:13.6]} 33.
Qb7+ {[%clk 0:00:18.4]} 33... Kf6 {[%clk 0:00:13.1]} 34. Qxb5 {[%clk 0:00:17.9]}
34... h5 {[%clk 0:00:13.5]} 35. c6 {[%clk 0:00:17.1]} 35... h4+ {[%clk
0:00:10.7]} 36. Kf3 {[%clk 0:00:16.8]} 36... Rxh2 {[%clk 0:00:09.2]} 37. c7
{[%clk 0:00:15.9]} 37... Rc2 {[%clk 0:00:09.8]} 38. Qd7 {[%clk 0:00:15.2]} 38...
Kf5 {[%clk 0:00:09.4]} 39. c8=Q {[%clk 0:00:15]} 39... g4+ {[%clk 0:00:10.2]}
40. Ke3 {[%clk 0:00:15.2]} 40... Rxc8 {[%clk 0:00:10.9]} 41. Qxc8 {[%clk
0:00:15.2]} 41... h3 {[%clk 0:00:11.8]} 42. Qf8+ {[%clk 0:00:14]} 42... Kg5
{[%clk 0:00:11.5]} 43. Qh8 {[%clk 0:00:13.2]} 43... e5 {[%clk 0:00:11.1]} 44.
Qxe5+ {[%clk 0:00:12.1]} 44... Kg6 {[%clk 0:00:09.1]} 45. Kf2 {[%clk 0:00:12.2]}
45... h2 {[%clk 0:00:10]} 46. Qxh2 {[%clk 0:00:11.9]} 46... g3+ {[%clk
0:00:10.9]} 1-0

[Event "Early-Titled-Tuesday-Blitz-May-14-2024"]
[Site "Chess.com"]
[Date "2024.05.14"]
[Round "5"]
[White "Azalea95"]
[Black "Ariadna_Atreides"]
[Result "1-0"]
[WhiteElo "2394"]
[BlackElo "2232"]
[TimeControl "180+1"]
[EndTime "8:58:02 PDT"]
[Termination "Azalea95 won on time"]

1. e4 {[%clk 0:02:58.4]} 1... c6 {[%clk 0:02:59]} 2. d4 {[%clk 0:02:53.2]} 2...
d5 {[%clk 0:02:59.4]} 3. exd5 {[%clk 0:02:46.3]} 3... cxd5 {[%clk 0:02:59]} 4.
Bd3 {[%clk 0:02:46.9]} 4... Nf6 {[%clk 0:02:57.3]} 5. c3 {[%clk 0:02:47.3]} 5...
Bg4 {[%clk 0:02:55.5]} 6. Qb3 {[%clk 0:02:43.4]} 6... Qd7 {[%clk 0:02:55.1]} 7.
Bf4 {[%clk 0:02:40.7]} 7... Nc6 {[%clk 0:02:53.7]} 8. Nd2 {[%clk 0:02:40.5]}
8... e6 {[%clk 0:02:52.2]} 9. Ngf3 {[%clk 0:02:40.6]} 9... Bxf3 {[%clk
0:02:48.5]} 10. Nxf3 {[%clk 0:02:40.5]} 10... a6 {[%clk 0:02:48.1]} 11. O-O
{[%clk 0:02:39.5]} 11... Be7 {[%clk 0:02:11.8]} 12. Rfe1 {[%clk 0:02:36.3]}
12... O-O {[%clk 0:02:10.3]} 13. a4 {[%clk 0:02:16.8]} 13... Nh5 {[%clk
0:02:02]} 14. Ne5 {[%clk 0:01:57.1]} 14... Nxe5 {[%clk 0:01:52.7]} 15. Bxe5
{[%clk 0:01:58]} 15... f6 {[%clk 0:01:52]} 16. Qd1 {[%clk 0:01:47.7]} 16... g6
{[%clk 0:01:38.4]} 17. Bg3 {[%clk 0:01:43.5]} 17... Nxg3 {[%clk 0:01:31.7]} 18.
hxg3 {[%clk 0:01:44.4]} 18... Bd6 {[%clk 0:01:28]} 19. Qg4 {[%clk 0:01:40.9]}
19... f5 {[%clk 0:01:21.8]} 20. Qg5 {[%clk 0:01:36.7]} 20... Kg7 {[%clk
0:01:14]} 21. Re2 {[%clk 0:01:31.6]} 21... h6 {[%clk 0:01:11.6]} 22. Qd2 {[%clk
0:01:29.5]} 22... Rae8 {[%clk 0:01:07.8]} 23. Bc2 {[%clk 0:01:09.4]} 23... Qf7
{[%clk 0:00:56.6]} 24. Rae1 {[%clk 0:01:06.6]} 24... g5 {[%clk 0:00:14.9]} 25.
Qd3 {[%clk 0:01:04.4]} 25... g4 {[%clk 0:00:13.4]} 26. Re3 {[%clk 0:00:52]}
26... Qg6 {[%clk 0:00:12.3]} 27. c4 {[%clk 0:00:42.1]} 27... dxc4 {[%clk
0:00:10.4]} 28. Qxc4 {[%clk 0:00:43]} 28... Rc8 {[%clk 0:00:05.5]} 29. Qb3
{[%clk 0:00:38.9]} 29... Rf6 {[%clk 0:00:05]} 30. Rxe6 {[%clk 0:00:25.9]} 30...
Rxc2 {[%clk 0:00:02.1]} 31. Rxf6 {[%clk 0:00:23.2]} 31... Qxf6 {[%clk
0:00:01.9]} 32. Qxc2 {[%clk 0:00:22.5]} 32... f4 {[%clk 0:00:00.3]} 33. gxf4
{[%clk 0:00:20.4]} 33... Qxf4 {[%clk 0:00:01.2]} 34. g3 {[%clk 0:00:19.1]} 34...
Qxd4 {[%clk 0:00:01.4]} 35. Re4 {[%clk 0:00:16]} 35... Qf6 {[%clk 0:00:01.1]}
36. Rxg4+ {[%clk 0:00:15.2]} 36... Kf7 {[%clk 0:00:01.4]} 37. Qh7+ {[%clk
0:00:13.9]} 37... Ke6 {[%clk 0:00:01.6]} 38. Rg6 {[%clk 0:00:13.6]} 38... Ke5
{[%clk 0:00:01.1]} 39. Rxf6 {[%clk 0:00:13.5]} 1-0

[Event "Early-Titled-Tuesday-Blitz-May-14-2024"]
[Site "Chess.com"]
[Date "2024.05.14"]
[Round "5"]
[White "HajiyevKanan"]
[Black "zozik"]
[Result "0-1"]
[WhiteElo "2478"]
[BlackElo "2336"]
[TimeControl "180+1"]
[EndTime "8:58:03 PDT"]
[Termination "zozik won by resignation"]

1. d4 {[%clk 0:03:00.9]} 1... Nf6 {[%clk 0:02:55.3]} 2. Nf3 {[%clk 0:03:01.8]}
2... c5 {[%clk 0:02:51.9]} 3. c4 {[%clk 0:03:02.7]} 3... g6 {[%clk 0:02:50.4]}
4. Nc3 {[%clk 0:03:02]} 4... Bg7 {[%clk 0:02:50.6]} 5. e3 {[%clk 0:03:02.7]}
5... O-O {[%clk 0:02:50.7]} 6. Be2 {[%clk 0:03:03.1]} 6... cxd4 {[%clk
0:02:50.8]} 7. Nxd4 {[%clk 0:03:04]} 7... d5 {[%clk 0:02:51]} 8. O-O {[%clk
0:03:04.9]} 8... Nc6 {[%clk 0:02:49.8]} 9. Nxc6 {[%clk 0:03:04.8]} 9... bxc6
{[%clk 0:02:49.5]} 10. Rb1 {[%clk 0:03:04.8]} 10... Bf5 {[%clk 0:02:47.6]} 11.
Bd3 {[%clk 0:03:04.2]} 11... dxc4 {[%clk 0:02:36.7]} 12. Bxf5 {[%clk 0:03:02.2]}
12... Qxd1 {[%clk 0:02:37.6]} 13. Rxd1 {[%clk 0:03:00.4]} 13... gxf5 {[%clk
0:02:38.3]} 14. Bd2 {[%clk 0:02:51.5]} 14... Rfd8 {[%clk 0:02:38]} 15. f3 {[%clk
0:02:47.3]} 15... Nd5 {[%clk 0:02:34.9]} 16. Kf2 {[%clk 0:02:37.8]} 16... Nxc3
{[%clk 0:02:30.4]} 17. Bxc3 {[%clk 0:02:36.9]} 17... Bxc3 {[%clk 0:02:30]} 18.
bxc3 {[%clk 0:02:37.8]} 18... Rxd1 {[%clk 0:02:23.8]} 19. Rxd1 {[%clk
0:02:38.7]} 19... Rb8 {[%clk 0:02:24]} 20. Rd4 {[%clk 0:02:32.4]} 20... Rb2+
{[%clk 0:02:22.8]} 21. Kg3 {[%clk 0:02:33.1]} 21... Rxa2 {[%clk 0:02:22.6]} 22.
Rxc4 {[%clk 0:02:33.8]} 22... Ra6 {[%clk 0:02:23]} 23. Kf4 {[%clk 0:02:30.4]}
23... e6 {[%clk 0:02:23]} 24. Ke5 {[%clk 0:02:29.6]} 24... Kg7 {[%clk
0:02:23.2]} 25. Kd6 {[%clk 0:02:28.5]} 25... Ra2 {[%clk 0:02:22.4]} 26. g4
{[%clk 0:02:25.3]} 26... fxg4 {[%clk 0:02:11.1]} 27. Rxg4+ {[%clk 0:02:26.2]}
27... Kf6 {[%clk 0:02:11.3]} 28. Rh4 {[%clk 0:02:25.5]} 28... Rc2 {[%clk
0:02:10.9]} 29. c4 {[%clk 0:02:25.2]} 29... Rc3 {[%clk 0:02:11.1]} 30. Re4
{[%clk 0:02:18.3]} 30... a5 {[%clk 0:02:07.5]} 31. Kc5 {[%clk 0:02:06.2]} 31...
Ke7 {[%clk 0:02:01.3]} 32. Kxc6 {[%clk 0:01:31.4]} 32... a4 {[%clk 0:01:59.7]}
33. c5 {[%clk 0:01:30.2]} 33... a3 {[%clk 0:02:00.1]} 34. Kb6 {[%clk 0:01:24.4]}
34... Rb3+ {[%clk 0:01:56.7]} 35. Kc7 {[%clk 0:01:23.1]} 35... Rb5 {[%clk
0:01:51]} 36. c6 {[%clk 0:01:06.6]} 36... Ra5 {[%clk 0:01:50.2]} 37. Kb6 {[%clk
0:01:07.3]} 37... a2 {[%clk 0:01:49.7]} 38. Kxa5 {[%clk 0:01:07.3]} 38... a1=Q+
{[%clk 0:01:49.3]} 39. Kb6 {[%clk 0:01:07.9]} 39... Qb2+ {[%clk 0:01:45.3]} 40.
Kc7 {[%clk 0:01:04.4]} 40... Qxh2+ {[%clk 0:01:44.9]} 41. Kc8 {[%clk 0:01:01.1]}
41... Qg2 {[%clk 0:01:41.4]} 42. c7 {[%clk 0:00:57.5]} 42... Qxf3 {[%clk
0:01:41.7]} 43. Ra4 {[%clk 0:00:54.5]} 43... Qc6 {[%clk 0:01:39]} 44. Ra7 {[%clk
0:00:53.7]} 44... Qb6 {[%clk 0:01:27.7]} 45. Rb7 {[%clk 0:00:52.1]} 45... Qxe3
{[%clk 0:00:44.9]} 46. Kb8 {[%clk 0:00:51.4]} 46... Qe5 {[%clk 0:00:45.5]} 47.
Kc8 {[%clk 0:00:51.8]} 47... h5 {[%clk 0:00:42.5]} 48. Rb5 {[%clk 0:00:52.2]}
48... Qc3 {[%clk 0:00:22.4]} 49. Rxh5 {[%clk 0:00:47.8]} 49... Kd6 {[%clk
0:00:21.3]} 50. Kb7 {[%clk 0:00:37.8]} 50... Qxc7+ {[%clk 0:00:20.8]} 51. Ka6
{[%clk 0:00:38.7]} 51... Qc6+ {[%clk 0:00:20.3]} 52. Ka5 {[%clk 0:00:38.5]}
52... Qb7 {[%clk 0:00:19.4]} 53. Rh4 {[%clk 0:00:33.9]} 53... f5 {[%clk
0:00:19.1]} 54. Rd4+ {[%clk 0:00:32.5]} 54... Kc5 {[%clk 0:00:18.7]} 0-1

[Event "Early-Titled-Tuesday-Blitz-May-14-2024"]
[Site "Chess.com"]
[Date "2024.05.14"]
[Round "5"]
[White "maciek_92"]
[Black "DrVelja"]
[Result "1-0"]
[WhiteElo "2827"]
[BlackElo "2957"]
[TimeControl "180+1"]
[EndTime "8:58:04 PDT"]
[Termination "maciek_92 won by checkmate"]

1. c4 {[%clk 0:03:00.9]} 1... e5 {[%clk 0:02:59.8]} 2. Nc3 {[%clk 0:03:01.2]}
2... Nf6 {[%clk 0:02:58.9]} 3. g3 {[%clk 0:03:01.5]} 3... Bb4 {[%clk 0:02:58.7]}
4. Bg2 {[%clk 0:03:01]} 4... O-O {[%clk 0:02:58.9]} 5. e4 {[%clk 0:03:00.8]}
5... Bxc3 {[%clk 0:02:58.1]} 6. bxc3 {[%clk 0:03:01.5]} 6... c6 {[%clk
0:02:43.6]} 7. Ne2 {[%clk 0:03:02.1]} 7... d5 {[%clk 0:02:35.8]} 8. cxd5 {[%clk
0:03:03]} 8... cxd5 {[%clk 0:02:36.7]} 9. exd5 {[%clk 0:03:03.9]} 9... Nxd5
{[%clk 0:02:37.4]} 10. d4 {[%clk 0:03:04.5]} 10... exd4 {[%clk 0:02:33.1]} 11.
Qxd4 {[%clk 0:03:05.4]} 11... Be6 {[%clk 0:02:33.7]} 12. O-O {[%clk 0:03:05.3]}
12... Nc6 {[%clk 0:02:34.1]} 13. Qa4 {[%clk 0:03:04.6]} 13... Nb6 {[%clk
0:02:33.5]} 14. Qc2 {[%clk 0:03:04.2]} 14... Qc8 {[%clk 0:02:05]} 15. Nf4 {[%clk
0:02:47.9]} 15... Bf5 {[%clk 0:02:04.8]} 16. Qb3 {[%clk 0:02:47.2]} 16... Na5
{[%clk 0:02:00.4]} 17. Qb4 {[%clk 0:02:47.1]} 17... Nac4 {[%clk 0:01:55.7]} 18.
Nd5 {[%clk 0:02:35.6]} 18... Nxd5 {[%clk 0:01:49.4]} 19. Bxd5 {[%clk 0:02:36.5]}
19... Nb6 {[%clk 0:01:23.9]} 20. Bf3 {[%clk 0:02:35.8]} 20... Rd8 {[%clk
0:01:12.5]} 21. Be3 {[%clk 0:01:05.7]} 21... Nd5 {[%clk 0:01:10.3]} 22. Qb3
{[%clk 0:01:04.3]} 22... Be6 {[%clk 0:01:01.8]} 23. Bd4 {[%clk 0:00:52.5]} 23...
Qd7 {[%clk 0:00:16.8]} 24. Rad1 {[%clk 0:00:47.4]} 24... b5 {[%clk 0:00:13.7]}
25. c4 {[%clk 0:00:34.9]} 25... bxc4 {[%clk 0:00:13.3]} 26. Qxc4 {[%clk
0:00:35.8]} 26... Rac8 {[%clk 0:00:13.6]} 27. Qe2 {[%clk 0:00:33.1]} 27... Qa4
{[%clk 0:00:11.5]} 28. Ba1 {[%clk 0:00:31.6]} 28... Nf6 {[%clk 0:00:06.2]} 29.
Bxf6 {[%clk 0:00:29.9]} 29... gxf6 {[%clk 0:00:07.1]} 30. Be4 {[%clk 0:00:17]}
30... f5 {[%clk 0:00:06.7]} 31. Bb1 {[%clk 0:00:15.2]} 31... Bc4 {[%clk
0:00:05.2]} 32. Rxd8+ {[%clk 0:00:14.5]} 32... Rxd8 {[%clk 0:00:05.5]} 33. Qe7
{[%clk 0:00:15.4]} 33... Re8 {[%clk 0:00:01.9]} 34. Qg5+ {[%clk 0:00:15.3]}
34... Kf8 {[%clk 0:00:02.8]} 35. Rc1 {[%clk 0:00:13.3]} 35... Be6 {[%clk
0:00:02.8]} 36. Qh6+ {[%clk 0:00:13.2]} 36... Kg8 {[%clk 0:00:03]} 37. Qg5+
{[%clk 0:00:13.5]} 37... Kf8 {[%clk 0:00:03.9]} 38. Bxf5 {[%clk 0:00:12.5]}
38... Bxf5 {[%clk 0:00:04.1]} 39. Qxf5 {[%clk 0:00:13]} 39... Qxa2 {[%clk
0:00:03.7]} 40. Qxh7 {[%clk 0:00:11.2]} 40... Qe6 {[%clk 0:00:03.7]} 41. Qh8+
{[%clk 0:00:07.6]} 41... Ke7 {[%clk 0:00:04]} 42. Qd4 {[%clk 0:00:07.2]} 42...
a6 {[%clk 0:00:02.1]} 43. Rc7+ {[%clk 0:00:06.7]} 43... Kf8 {[%clk 0:00:02.9]}
44. Qh8# {[%clk 0:00:07.1]} 1-0

[Event "Early-Titled-Tuesday-Blitz-May-14-2024"]
[Site "Chess.com"]
[Date "2024.05.14"]
[Round "5"]
[White "ViktoriyaTarasova"]
[Black "Aleksandar-Topalov"]
[Result "1-0"]
[WhiteElo "2320"]
[BlackElo "2467"]
[TimeControl "180+1"]
[EndTime "8:58:04 PDT"]
[Termination "ViktoriyaTarasova won on time"]

1. d4 {[%clk 0:03:00.9]} 1... e6 {[%clk 0:02:58.9]} 2. c4 {[%clk 0:02:58.1]}
2... Nf6 {[%clk 0:02:57.6]} 3. Nc3 {[%clk 0:02:57.9]} 3... Bb4 {[%clk
0:02:56.1]} 4. Nf3 {[%clk 0:02:57.8]} 4... O-O {[%clk 0:02:53.2]} 5. Bg5 {[%clk
0:02:54.7]} 5... h6 {[%clk 0:02:49.1]} 6. Bh4 {[%clk 0:02:54.4]} 6... c5 {[%clk
0:02:49.1]} 7. e3 {[%clk 0:02:42.6]} 7... Qa5 {[%clk 0:02:43.2]} 8. Qc2 {[%clk
0:02:28]} 8... Ne4 {[%clk 0:02:41.6]} 9. Rc1 {[%clk 0:02:25]} 9... f5 {[%clk
0:02:27.6]} 10. Bd3 {[%clk 0:02:19.8]} 10... cxd4 {[%clk 0:01:43.3]} 11. Nxd4
{[%clk 0:02:12.7]} 11... Nxc3 {[%clk 0:01:34.1]} 12. bxc3 {[%clk 0:02:12]} 12...
Bc5 {[%clk 0:01:23.8]} 13. Bg3 {[%clk 0:01:57.6]} 13... Nc6 {[%clk 0:01:16.2]}
14. Nb3 {[%clk 0:01:54.5]} 14... Qb6 {[%clk 0:01:14.9]} 15. Rb1 {[%clk
0:01:48.6]} 15... a6 {[%clk 0:00:53.8]} 16. O-O {[%clk 0:01:47.4]} 16... d6
{[%clk 0:00:50.6]} 17. Rfd1 {[%clk 0:01:33.3]} 17... e5 {[%clk 0:00:47.9]} 18.
Nd4 {[%clk 0:01:25.2]} 18... Qd8 {[%clk 0:00:27]} 19. Nxf5 {[%clk 0:01:24.4]}
19... Qf6 {[%clk 0:00:19.9]} 20. Nh4 {[%clk 0:01:15]} 20... g5 {[%clk
0:00:17.5]} 21. Nf3 {[%clk 0:01:14.2]} 21... Bg4 {[%clk 0:00:16.3]} 22. Be2
{[%clk 0:01:08.6]} 22... Rf7 {[%clk 0:00:16.6]} 23. h3 {[%clk 0:01:03.4]} 23...
Be6 {[%clk 0:00:14.5]} 24. Nh2 {[%clk 0:00:49.7]} 24... Raf8 {[%clk 0:00:12.5]}
25. Ng4 {[%clk 0:00:48.1]} 25... Qg7 {[%clk 0:00:12.6]} 26. Nh2 {[%clk
0:00:43.7]} 26... Bf5 {[%clk 0:00:10.1]} 27. Bd3 {[%clk 0:00:39.4]} 27... Be6
{[%clk 0:00:07.3]} 28. Rd2 {[%clk 0:00:33.9]} 28... Na5 {[%clk 0:00:07.2]} 29.
Qa4 {[%clk 0:00:29.5]} 29... b6 {[%clk 0:00:07.4]} 30. Bf1 {[%clk 0:00:21.5]}
30... h5 {[%clk 0:00:07.3]} 31. h4 {[%clk 0:00:14.8]} 31... gxh4 {[%clk
0:00:06.6]} 32. Bxh4 {[%clk 0:00:15.2]} 32... e4 {[%clk 0:00:05.4]} 33. Qd1
{[%clk 0:00:13.9]} 33... Qg6 {[%clk 0:00:04.6]} 34. Be2 {[%clk 0:00:12.8]} 34...
Rh7 {[%clk 0:00:01.5]} 35. Nf1 {[%clk 0:00:08.6]} 35... Nxc4 {[%clk 0:00:01.6]}
36. Bxc4 {[%clk 0:00:08.6]} 36... Bxc4 {[%clk 0:00:02]} 37. Ng3 {[%clk
0:00:09.3]} 37... Bd3 {[%clk 0:00:02.2]} 38. Rbb2 {[%clk 0:00:08.7]} 38... d5
{[%clk 0:00:01.8]} 39. f3 {[%clk 0:00:09.1]} 39... b5 {[%clk 0:00:01.8]} 40. Kh2
{[%clk 0:00:09.7]} 40... exf3 {[%clk 0:00:01.1]} 41. gxf3 {[%clk 0:00:09.3]}
41... Bf5 {[%clk 0:00:00.1]} 42. Rxd5 {[%clk 0:00:08.7]} 1-0